fUST/lending_fUST_20241228
["ID","MTS","AMOUNT","RATE_DAILY","PERIOD"]
[346862461,1735333751574,-500.0,0.00011756,2]
[346862462,1735333751594,-500.0,0.00011756,2]
[346862463,1735333751615,-500.0,0.00011756,2]
[346862464,1735333751636,-500.0,0.00011756,2]
[346862465,1735333751657,-500.0,0.00011756,2]
[346862466,1735333751677,-500.0,0.00011756,2]
[346862467,1735333751787,-500.0,0.00011756,2]
[346862468,1735333751808,-500.0,0.00011756,2]
[346862469,1735333751828,-500.0,0.00011756,2]
[346862470,1735333751848,-170.8,0.00011756,2]
[346862471,1735333751869,-182.43414869,0.00011756,2]
[346862472,1735333751892,-500.0,0.00011756,2]
[346862473,1735333751912,-500.0,0.00011756,2]
[346862474,1735333751931,-500.0,0.00011756,2]
[346862475,1735333751951,-500.0,0.00011756,2]
[346862476,1735333751972,-500.0,0.00011756,2]
[346862477,1735333751993,-500.0,0.00011756,2]
[346862478,1735333752013,-500.0,0.00011756,2]
[346862479,1735333752034,-500.0,0.00011756,2]
[346862480,1735333752054,-500.0,0.00011756,2]
[346862481,1735333752074,-500.0,0.00011756,2]
[346862482,1735333752094,-500.0,0.00011756,2]
[346862483,1735333752114,-500.0,0.00011756,2]
[346862484,1735333752134,-500.0,0.00011756,2]
[346862485,1735333752154,-619.23506761,0.00011756,2]
[346862486,1735333752177,-500.0,0.00011756,2]
[346862487,1735333752198,-208.7,0.00011756,2]
[346862488,1735333752220,-500.0,0.00011756,2]
[346862489,1735333752240,-500.0,0.00011756,2]
[346862490,1735333752264,-500.0,0.00011756,2]
[346862491,1735333752285,-176.0558825,0.00011756,2]
[346862492,1735333752305,-500.0,0.00011756,2]
[346862493,1735333752324,-500.0,0.00011756,2]
[346862494,1735333752345,-500.0,0.00011756,2]
[346862495,1735333752367,-500.0,0.00011756,2]
[346862496,1735333752388,-500.0,0.00011756,2]
[346862497,1735333752407,-500.0,0.00011756,2]
[346862498,1735333752429,-500.0,0.00011756,2]
[346862499,1735333752452,-32.33286768,0.00011756,2]
[346862500,1735333752614,-467.66713232,0.00011756,2]
[346862501,1735333752635,-500.0,0.00011756,2]
[346862502,1735333752655,-500.0,0.00011756,2]
[346862503,1735333752674,-225.38,0.00011756,2]
[346862504,1735333752695,-500.0,0.00011756,2]
[346862505,1735333752716,-500.0,0.00011756,2]
[346862506,1735333752737,-500.0,0.00011756,2]
[346862507,1735333752758,-500.0,0.00011756,2]
[346862508,1735333752780,-151.75643762,0.00011756,2]
[346862509,1735333752808,-500.0,0.00011756,2]
[346862510,1735333752838,-500.0,0.00011756,2]
[346862511,1735333752864,-500.0,0.00011756,2]
[346862512,1735333752891,-505.30975216,0.00011756,2]
[346862513,1735333752917,-500.0,0.00011756,2]
[346862514,1735333752944,-500.0,0.00011756,2]
[346862515,1735333752970,-500.0,0.00011756,2]
[346862516,1735333752995,-500.0,0.00011756,2]
[346862517,1735333753022,-500.0,0.00011756,2]
[346862518,1735333753047,-500.0,0.00011756,2]
[346862519,1735333753073,-500.0,0.00011756,2]
[346862520,1735333753097,-500.0,0.00011756,2]
[346862521,1735333753124,-500.0,0.00011756,2]
[346862522,1735333753150,-500.0,0.00011756,2]
[346862523,1735333753175,-500.0,0.00011756,2]
[346862524,1735333753199,-500.0,0.00011756,2]
[346862525,1735333753225,-500.0,0.00011756,2]
[346862526,1735333753253,-500.0,0.00011756,2]
[346862527,1735333753280,-500.0,0.00011756,2]
[346862528,1735333753307,-500.0,0.00011756,2]
[346862529,1735333753335,-259.81822621,0.00011756,2]
[346862530,1735333753363,-500.0,0.00011756,2]
[346862531,1735333753388,-382.85650905,0.00011756,2]
[346862532,1735333753410,-613.96,0.00011756,2]
[346862533,1735333753433,-500.0,0.00011756,2]
[346862534,1735333753458,-500.0,0.00011756,2]
[346862535,1735333753489,-500.0,0.00011756,2]
[346862536,1735333753514,-500.0,0.00011756,2]
[346862537,1735333753537,-500.0,0.00011756,2]
[346862538,1735333753562,-500.0,0.00011756,2]
[346862539,1735333753588,-500.0,0.00011756,2]
[346862540,1735333753611,-500.0,0.00011756,2]
[346862541,1735333753633,-500.0,0.00011756,2]
[346862542,1735333753656,-500.0,0.00011756,2]
[346862543,1735333753679,-500.0,0.00011756,2]
[346862544,1735333753703,-500.0,0.00011756,2]
[346862545,1735333753726,-500.0,0.00011756,2]
[346862546,1735333753750,-466.42965618,0.00011756,2]
[346862547,1735333753773,-500.0,0.00011756,2]
[346862548,1735333753797,-500.0,0.00011756,2]
[346862549,1735333753826,-500.0,0.00011756,2]
[346862550,1735333753850,-500.0,0.00011756,2]
[346862551,1735333753874,-500.0,0.00011756,2]
[346862552,1735333753899,-500.0,0.00011756,2]
[346862553,1735333753921,-383.947523,0.00011756,2]
[346862554,1735333753944,-500.0,0.00011756,2]
[346862555,1735333753968,-500.0,0.00011756,2]
[346862556,1735333753992,-500.0,0.00011756,2]
[346862557,1735333754016,-500.0,0.00011756,2]
[346862558,1735333754041,-500.0,0.00011756,2]
[346862559,1735333754065,-500.0,0.00011756,2]
[346862560,1735333754089,-500.0,0.00011756,2]
[346862561,1735333754114,-500.0,0.00011756,2]
[346862562,1735333754267,-500.0,0.00011756,2]
[346862563,1735333754290,-500.0,0.00011756,2]
[346862564,1735333754312,-500.0,0.00012029,2]
[346862565,1735333754334,-500.0,0.00012029,2]
[346862566,1735333754355,-500.0,0.00012029,2]
[346862567,1735333754378,-3623.71,0.00012029,2]
[346862568,1735333754401,-500.0,0.00012029,2]
[346862569,1735333754423,-497.0,0.00012029,2]
[346862570,1735333754445,-500.0,0.00012029,2]
[346862571,1735333754467,-380.12,0.00012029,2]
[346862572,1735333754488,-500.0,0.0001203,2]
[346862573,1735333754509,-500.0,0.0001203,2]
[346862574,1735333754531,-500.0,0.0001203,2]
[346862575,1735333754552,-500.0,0.0001203,2]
[346862576,1735333754572,-284.6829809,0.0001203,2]
[346862577,1735333754593,-500.0,0.0001203,2]
[346862578,1735333754614,-500.0,0.0001203,2]
[346862579,1735333754634,-500.0,0.0001203,2]
[346862580,1735333754656,-500.0,0.0001203,2]
[346862581,1735333754678,-500.0,0.0001203,2]
[346862582,1735333754698,-414.42280096,0.0001203,2]
[346862583,1735333754720,-500.0,0.0001203,2]
[346862584,1735333754740,-500.0,0.0001203,2]
[346862585,1735333754761,-574.16,0.0001203,2]
[346862586,1735333754781,-500.0,0.0001203,2]
[346862587,1735333754801,-500.0,0.0001203,2]
[346862588,1735333754823,-500.0,0.0001203,2]
[346862589,1735333754844,-500.0,0.0001203,2]
[346862590,1735333754864,-500.0,0.0001203,2]
[346862591,1735333754885,-500.0,0.0001203,2]
[346862592,1735333754906,-442.37,0.0001203,2]
[346862593,1735333754928,-500.0,0.0001203,2]
[346862594,1735333754949,-500.0,0.0001203,2]
[346862595,1735333754970,-500.0,0.0001203,2]
[346862596,1735333754990,-282.11,0.0001203,2]
[346862597,1735333755011,-500.0,0.0001203,2]
[346862598,1735333755033,-500.0,0.0001203,2]
[346862599,1735333755054,-304.27,0.0001203,2]
[346862600,1735333755076,-500.0,0.0001203,2]
[346862601,1735333755098,-500.0,0.0001203,2]
[346862602,1735333755119,-163.44,0.0001203,2]
[346862603,1735333755141,-500.0,0.0001203,2]
[346862604,1735333755163,-500.0,0.0001203,2]
[346862605,1735333755187,-500.0,0.0001203,2]
[346862606,1735333755209,-625.87,0.0001203,2]
[346862607,1735333755231,-500.0,0.0001203,2]
[346862608,1735333755251,-500.0,0.0001203,2]
[346862609,1735333755273,-500.0,0.0001203,2]
[346862610,1735333755294,-500.0,0.0001203,2]
[346862611,1735333755315,-500.0,0.0001203,2]
[346862612,1735333755338,-500.0,0.0001203,2]
[346862613,1735333755359,-500.0,0.0001203,2]
[346862614,1735333755381,-500.0,0.0001203,2]
[346862615,1735333755403,-500.0,0.0001203,2]
[346862616,1735333755425,-500.0,0.0001203,2]
[346862617,1735333755448,-322.58,0.0001203,2]
[346862618,1735333755470,-500.0,0.0001203,2]
[346862619,1735333755491,-500.0,0.0001203,2]
[346862620,1735333755512,-500.0,0.0001203,2]
[346862621,1735333755532,-152.5,0.0001203,2]
[346862622,1735333755553,-500.0,0.0001203,2]
[346862623,1735333755575,-157.98,0.0001203,2]
[346862624,1735333755596,-500.0,0.0001203,2]
[346862625,1735333755616,-645.76,0.0001203,2]
[346862626,1735333755639,-500.0,0.0001203,2]
[346862627,1735333755660,-500.0,0.0001203,2]
[346862628,1735333755682,-500.0,0.0001203,2]
[346862629,1735333755705,-500.0,0.0001203,2]
[346862630,1735333755728,-500.0,0.0001203,2]
[346862631,1735333755763,-500.0,0.0001203,2]
[346862632,1735333755783,-500.0,0.0001203,2]
[346862633,1735333755807,-500.0,0.0001203,2]
[346862634,1735333755830,-500.0,0.0001203,2]
[346862635,1735333755851,-500.0,0.0001203,2]
[346862636,1735333755872,-500.0,0.0001203,2]
[346862637,1735333755892,-500.0,0.00012086,2]
[346862638,1735333755913,-352.14094772,0.00012087,2]
[346862639,1735333755934,-500.0,0.00012209,2]
[346862640,1735333755955,-500.0,0.00012303,2]
[346862641,1735333755975,-500.0,0.00012303,2]
[346862642,1735333755996,-500.0,0.00012303,2]
[346862643,1735333756020,-3623.71,0.00012303,2]
[346862644,1735333756041,-500.0,0.00012303,2]
[346862645,1735333756061,-500.0,0.00012304,2]
[346862646,1735333756082,-500.0,0.00012304,2]
[346862647,1735333756102,-500.0,0.00012304,2]
[346862648,1735333756124,-500.0,0.00012304,2]
[346862649,1735333756146,-500.0,0.00012304,2]
[346862650,1735333756166,-500.0,0.00012304,2]
[346862651,1735333756190,-500.0,0.00012304,2]
[346862652,1735333756211,-500.0,0.00012304,2]
[346862653,1735333756231,-500.0,0.00012304,2]
[346862654,1735333756257,-500.0,0.00012304,2]
[346862655,1735333756284,-500.0,0.00012304,2]
[346862656,1735333756306,-500.0,0.00012304,2]
[346862657,1735333756326,-500.0,0.00012304,2]
[346862658,1735333756346,-203.76,0.00012304,2]
[346862659,1735333756367,-500.0,0.00012304,2]
[346862660,1735333756388,-500.0,0.00012304,2]
[346862661,1735333756410,-500.0,0.00012304,2]
[346862662,1735333756430,-500.0,0.00012304,2]
[346862663,1735333756452,-500.0,0.00012304,2]
[346862664,1735333756473,-500.0,0.00012304,2]
[346862665,1735333756495,-432.45,0.00012304,2]
[346862666,1735333756522,-500.0,0.00012304,2]
[346862667,1735333756543,-226.8253453,0.00012304,2]
[346862668,1735333756564,-500.0,0.00012304,2]
[346862669,1735333756585,-500.0,0.00012304,2]
[346862670,1735333756608,-500.0,0.00012304,2]
[346862671,1735333756629,-485.4,0.00012304,2]
[346862672,1735333756651,-500.0,0.00012304,2]
[346862673,1735333756672,-500.0,0.00012304,2]
[346862674,1735333756694,-500.0,0.00012304,2]
[346862675,1735333756715,-500.0,0.00012304,2]
[346862676,1735333756737,-500.0,0.00012304,2]
[346862677,1735333756763,-618.43,0.00012304,2]
[346862678,1735333756787,-500.0,0.00012304,2]
[346862679,1735333756811,-500.0,0.00012304,2]
[346862680,1735333756833,-500.0,0.00012304,2]
[346862681,1735333756854,-500.0,0.00012304,2]
[346862682,1735333756874,-449.0,0.00012304,2]
[346862683,1735333756895,-500.0,0.00012304,2]
[346862684,1735333756915,-318.63,0.00012304,2]
[346862685,1735333756936,-500.0,0.00012304,2]
[346862686,1735333756958,-500.0,0.00012304,2]
[346862687,1735333756978,-500.0,0.00012304,2]
[346862688,1735333757088,-500.0,0.00012329,2]
[346862689,1735333757117,-500.0,0.0001255,2]
[346862690,1735333757139,-500.0,0.0001255,2]
[346862691,1735333757160,-500.0,0.0001255,2]
[346862692,1735333757184,-500.0,0.0001255,2]
[346862693,1735333757204,-500.0,0.0001255,2]
[346862694,1735333757226,-500.0,0.0001255,2]
[346862695,1735333757250,-500.0,0.0001255,2]
[346862696,1735333757271,-500.0,0.0001255,2]
[346862697,1735333757292,-500.0,0.0001255,2]
[346862698,1735333757314,-500.0,0.0001255,2]
[346862699,1735333757337,-500.0,0.0001255,2]
[346862700,1735333757360,-500.0,0.0001255,2]
[346862701,1735333757384,-500.0,0.0001255,2]
[346862702,1735333757407,-500.0,0.0001255,2]
[346862703,1735333757429,-500.0,0.0001255,2]
[346862704,1735333757450,-500.0,0.0001255,2]
[346862705,1735333757471,-500.0,0.0001255,2]
[346862706,1735333757492,-500.0,0.0001255,2]
[346862707,1735333757513,-500.0,0.0001255,2]
[346862708,1735333757536,-500.0,0.0001255,2]
[346862709,1735333757557,-500.0,0.0001255,2]
[346862710,1735333757577,-500.0,0.0001255,2]
[346862711,1735333757604,-500.0,0.00012551,2]
[346862712,1735333757636,-500.0,0.00012551,2]
[346862713,1735333757671,-500.0,0.00012551,2]
[346862714,1735333757692,-500.0,0.00012551,2]
[346862715,1735333757713,-179.2896496,0.00012576,2]
[346862716,1735333757734,-470.56,0.00012577,2]
[346862717,1735333757756,-202.12,0.00012577,2]
[346862718,1735333757779,-500.0,0.00012577,2]
[346862719,1735333757801,-3623.71,0.00012577,2]
[346862720,1735333757822,-189.16,0.00012577,2]
[346862721,1735333757843,-500.0,0.00012578,2]
[346862722,1735333757863,-500.0,0.00012578,2]
[346862723,1735333757884,-500.0,0.00012578,2]
[346862724,1735333757906,-162.41,0.00012578,2]
[346862725,1735333757927,-500.0,0.00012578,2]
[346862726,1735333757948,-500.0,0.00012578,2]
[346862727,1735333757970,-500.0,0.00012578,2]
[346862728,1735333757991,-500.0,0.00012578,2]
[346862729,1735333758016,-500.0,0.00012578,2]
[346862730,1735333758037,-500.0,0.00012578,2]
[346862731,1735333758060,-500.0,0.00012578,2]
[346862732,1735333758083,-500.0,0.00012578,2]
[346862733,1735333758104,-500.0,0.00012578,2]
[346862734,1735333758127,-500.0,0.00012578,2]
[346862735,1735333758149,-619.41,0.00012578,2]
[346862736,1735333758172,-500.0,0.00012578,2]
[346862737,1735333758193,-500.0,0.00012578,2]
[346862738,1735333758215,-500.0,0.00012578,2]
[346862739,1735333758235,-500.0,0.00012578,2]
[346862740,1735333758261,-500.0,0.00012578,2]
[346862741,1735333758282,-500.0,0.00012578,2]
[346862742,1735333758302,-289.51,0.00012578,2]
[346862743,1735333758322,-500.0,0.00012578,2]
[346862744,1735333758345,-500.0,0.00012578,2]
[346862745,1735333758366,-500.0,0.00012578,2]
[346862746,1735333758387,-500.0,0.00012578,2]
[346862747,1735333758408,-500.0,0.00012578,2]
[346862748,1735333758430,-500.0,0.00012578,2]
[346862749,1735333758452,-500.0,0.00012578,2]
[346862750,1735333758473,-500.0,0.00012578,2]
[346862751,1735333758494,-500.0,0.00012578,2]
[346862752,1735333758517,-500.0,0.00012578,2]
[346862753,1735333758538,-500.0,0.00012578,2]
[346862754,1735333758559,-420.0,0.0001261,2]
[346862755,1735333758581,-500.0,0.00012757,2]
[346862756,1735333758602,-500.0,0.00012824,2]
[346862757,1735333758624,-500.0,0.00012824,2]
[346862758,1735333758646,-500.0,0.00012824,2]
[346862759,1735333758667,-500.0,0.00012824,2]
[346862760,1735333758688,-500.0,0.00012824,2]
[346862761,1735333758710,-500.0,0.00012824,2]
[346862762,1735333758731,-500.0,0.00012824,2]
[346862763,1735333758753,-500.0,0.00012824,2]
[346862764,1735333758774,-500.0,0.00012824,2]
[346862765,1735333758794,-500.0,0.00012824,2]
[346862766,1735333758815,-500.0,0.00012824,2]
[346862767,1735333758836,-500.0,0.00012824,2]
[346862768,1735333758856,-500.0,0.00012824,2]
[346862769,1735333758877,-500.0,0.00012824,2]
[346862770,1735333758897,-500.0,0.00012824,2]
[346862771,1735333758918,-500.0,0.00012824,2]
[346862772,1735333758940,-500.0,0.00012824,2]
[346862773,1735333758962,-500.0,0.00012824,2]
[346862774,1735333758982,-500.0,0.00012824,2]
[346862775,1735333759003,-500.0,0.00012824,2]
[346862776,1735333759023,-500.0,0.00012824,2]
[346862777,1735333759044,-500.0,0.00012824,2]
[346862778,1735333759066,-500.0,0.00012824,2]
[346862779,1735333759093,-500.0,0.00012825,2]
[346862780,1735333759114,-500.0,0.00012825,2]
[346862781,1735333759134,-500.0,0.00012825,2]
[346862782,1735333759155,-500.0,0.00012825,2]
[346862783,1735333759178,-798.107832,0.00012825,2]
[346862784,1735333759200,-798.107832,0.00012825,2]
[346862785,1735333759223,-421.444504,0.00012825,2]
[346862786,1735333759245,-500.0,0.00012851,2]
[346862787,1735333759267,-3623.71,0.00012851,2]
[346862788,1735333759288,-500.0,0.00012852,2]
[346862789,1735333759309,-358.01385486,0.00012852,2]
[346862790,1735333759330,-500.0,0.00012852,2]
[346862791,1735333759352,-500.0,0.00012852,2]
[346862792,1735333759372,-500.0,0.00012852,2]
[346862793,1735333759394,-500.0,0.00012852,2]
[346862794,1735333759416,-500.0,0.00012852,2]
[346862795,1735333759437,-500.0,0.00012852,2]
[346862796,1735333759458,-500.0,0.00012852,2]
[346862797,1735333759479,-500.0,0.00012852,2]
[346862798,1735333759502,-500.0,0.00012852,2]
[346862799,1735333759522,-545.72,0.00012852,2]
[346862800,1735333759544,-500.0,0.00012852,2]
[346862801,1735333759564,-500.0,0.00012852,2]
[346862802,1735333759585,-500.0,0.00012852,2]
[346862803,1735333759606,-500.0,0.00012852,2]
[346862804,1735333759630,-500.0,0.00012852,2]
[346862805,1735333759651,-500.0,0.00012852,2]
[346862806,1735333759674,-500.0,0.00012852,2]
[346862807,1735333759696,-634.55,0.00012852,2]
[346862808,1735333759718,-500.0,0.00012852,2]
[346862809,1735333759740,-500.0,0.00012852,2]
[346862810,1735333759762,-500.0,0.00012852,2]
[346862811,1735333759786,-500.0,0.00012852,2]
[346862812,1735333759808,-500.0,0.00012852,2]
[346862813,1735333759831,-500.0,0.00012852,2]
[346862814,1735333759954,-500.0,0.00012852,2]
[346862815,1735333759976,-151.651175,0.00012852,2]
[346862816,1735333759997,-604.77,0.00012852,2]
[346862817,1735333760024,-1000.0,0.00012877,2]
[346862818,1735333760046,-163.26537264,0.000129,2]
[346862819,1735333760067,-500.0,0.00013098,2]
[346862820,1735333760087,-203.63,0.00013098,2]
[346862821,1735333760108,-500.0,0.00013098,2]
[346862822,1735333760129,-500.0,0.00013098,2]
[346862823,1735333760149,-500.0,0.00013098,2]
[346862824,1735333760173,-500.0,0.00013098,2]
[346862825,1735333760194,-500.0,0.00013098,2]
[346862826,1735333760214,-500.0,0.00013098,2]
[346862827,1735333760234,-500.0,0.00013098,2]
[346862828,1735333760257,-500.0,0.00013099,2]
[346862829,1735333760279,-500.0,0.00013099,2]
[346862830,1735333760299,-500.0,0.00013099,2]
[346862831,1735333760319,-500.0,0.00013099,2]
[346862832,1735333760341,-429.59,0.00013125,2]
[346862833,1735333760362,-3623.71,0.00013125,2]
[346862834,1735333760384,-500.0,0.00013126,2]
[346862835,1735333760404,-500.0,0.00013126,2]
[346862836,1735333760425,-500.0,0.00013126,2]
[346862837,1735333760454,-500.0,0.00013126,2]
[346862838,1735333760480,-500.0,0.00013126,2]
[346862839,1735333760504,-500.0,0.00013126,2]
[346862840,1735333760526,-500.0,0.00013126,2]
[346862841,1735333760547,-500.0,0.00013126,2]
[346862842,1735333760568,-500.0,0.00013126,2]
[346862843,1735333760589,-500.0,0.00013126,2]
[346862844,1735333760610,-500.0,0.00013126,2]
[346862845,1735333760632,-500.0,0.00013126,2]
[346862846,1735333760654,-500.0,0.00013126,2]
[346862847,1735333760674,-500.0,0.00013126,2]
[346862848,1735333760695,-500.0,0.00013126,2]
[346862849,1735333760717,-500.0,0.00013126,2]
[346862850,1735333760738,-500.0,0.00013126,2]
[346862851,1735333760759,-500.0,0.00013126,2]
[346862852,1735333760780,-500.0,0.00013126,2]
[346862853,1735333760802,-575.12,0.00013126,2]
[346862854,1735333760823,-500.0,0.00013372,2]
[346862855,1735333760844,-500.0,0.00013372,2]
[346862856,1735333760865,-500.0,0.00013372,2]
[346862857,1735333760886,-500.0,0.00013372,2]
[346862858,1735333760907,-500.0,0.00013372,2]
[346862859,1735333760937,-500.0,0.00013373,2]
[346862860,1735333760966,-500.0,0.00013373,2]
[346862861,1735333760988,-325.33,0.00013373,2]
[346862862,1735333761011,-3623.71,0.00013399,2]
[346862863,1735333761033,-314.1,0.000134,2]
[346862864,1735333761055,-500.0,0.000134,2]
[346862865,1735333761078,-500.0,0.000134,2]
[346862866,1735333761100,-615.99,0.000134,2]
[346862867,1735333761122,-500.0,0.000134,2]
[346862868,1735333761142,-229.385236,0.000134,2]
[346862869,1735333761163,-500.0,0.000134,2]
[346862870,1735333761187,-229.385236,0.000134,2]
[346862871,1735333761212,-500.0,0.000134,2]
[346862872,1735333761235,-500.0,0.000134,2]
[346862873,1735333761259,-500.0,0.000134,2]
[346862874,1735333761280,-500.0,0.000134,2]
[346862875,1735333761301,-500.0,0.000134,2]
[346862876,1735333761324,-500.0,0.000134,2]
[346862877,1735333761345,-500.0,0.000134,2]
[346862878,1735333761367,-508.14,0.000134,2]
[346862879,1735333761390,-500.0,0.000134,2]
[346862880,1735333761412,-500.0,0.00013646,2]
[346862881,1735333761433,-500.0,0.00013646,2]
[346862882,1735333761456,-500.0,0.00013646,2]
[346862883,1735333761477,-500.0,0.00013646,2]
[346862884,1735333761498,-500.0,0.00013647,2]
[346862885,1735333761519,-500.0,0.00013647,2]
[346862886,1735333761541,-3623.71,0.00013673,2]
[346862887,1735333761562,-798.107832,0.00013673,2]
[346862888,1735333761583,-798.107832,0.00013673,2]
[346862889,1735333761604,-421.444504,0.00013673,2]
[346862890,1735333761626,-334.25,0.00013674,2]
[346862891,1735333761647,-500.0,0.00013674,2]
[346862892,1735333761669,-500.0,0.00013674,2]
[346862893,1735333761691,-500.0,0.00013674,2]
[346862894,1735333761712,-500.0,0.00013674,2]
[346862895,1735333761733,-500.0,0.00013674,2]
[346862896,1735333761755,-500.0,0.00013674,2]
[346862897,1735333761778,-500.0,0.00013698,2]
[346862898,1735333761798,-500.0,0.00013698,2]
[346862899,1735333761819,-500.0,0.00013698,2]
[346862900,1735333761840,-500.0,0.00013698,2]
[346862901,1735333761860,-431.0,0.0001385,2]
[346862902,1735333761882,-500.0,0.00013878,2]
[346862903,1735333761903,-500.0,0.0001392,2]
[346862904,1735333761926,-500.0,0.0001392,2]
[346862905,1735333761949,-244.52,0.0001392,2]
[346862906,1735333761972,-500.0,0.00013921,2]
[346862907,1735333761993,-500.0,0.00013921,2]
[346862908,1735333762017,-3623.71,0.00013947,2]
[346862909,1735333762038,-500.0,0.00013948,2]
[346862910,1735333762060,-404.18,0.00013948,2]
[346862911,1735333762084,-500.0,0.00013948,2]
[346862912,1735333762105,-500.0,0.00013948,2]
[346862913,1735333762128,-500.0,0.00013948,2]
[346862914,1735333762152,-400.0,0.00013973,2]
[346862915,1735333762177,-300.0,0.00014,4]
[346862916,1735333762199,-480.27,0.00014194,2]
[346862917,1735333762222,-500.0,0.00014195,2]
[346862918,1735333762247,-3623.71,0.00014221,2]
[346862919,1735333762269,-500.0,0.00014222,2]
[346862920,1735333762290,-500.0,0.00014469,2]
[346862921,1735333762311,-3623.71,0.00014495,2]
[346862922,1735333762333,-500.0,0.00014496,2]
[346862923,1735333762354,-500.0,0.00014743,2]
[346862924,1735333762375,-3623.71,0.00014769,2]
[346862925,1735333762396,-500.0,0.0001477,2]
[346862926,1735333762416,-3246.91410092,0.00014987,2]
[346862927,1735333762438,-3246.91410092,0.00014997,2]
[346862928,1735333762459,-3246.91410092,0.00015,2]
[346862929,1735333762481,-500.0,0.00015017,2]
[346862930,1735333762507,-3623.71,0.00015043,2]
[346862931,1735333762527,-500.0,0.00015044,2]
[346862932,1735333762549,-500.0,0.00015291,2]
[346862933,1735333762571,-3623.71,0.00015317,2]
[346862934,1735333762592,-500.0,0.00015318,2]
[346862935,1735333762727,-387.0,0.000155,5]
[346862936,1735333762750,-500.0,0.00015565,2]
[346862937,1735333762776,-3623.71,0.00015591,2]
[346862938,1735333762798,-500.0,0.00015592,2]
[346862939,1735333762823,-500.0,0.00015839,2]
[346862940,1735333762849,-3623.71,0.00015865,2]
[346862941,1735333762873,-514.14117403,0.00015866,2]
[346862942,1735333762894,-500.0,0.00016113,2]
[346862943,1735333762916,-3623.71,0.00016139,2]
[346862944,1735333763105,-500.0,0.00016387,2]
[346862945,1735333763126,-3623.71,0.00016413,2]
[346862946,1735333763147,-500.0,0.00016438,2]
[346862947,1735333763169,-179.98077066,0.00016499,2]
[346862948,1735333763192,-166.478,0.00016595,2]
[346862949,1735333763215,-202.3140027,0.00016595,2]
[346862950,1735333763240,-500.0,0.00016661,2]
[346862951,1735333763264,-3623.71,0.00016687,2]
[346862952,1735333763284,-500.0,0.00016935,2]
[346862953,1735333763307,-3623.71,0.00016961,2]
[346862954,1735333763332,-500.0,0.00017209,2]
[346862955,1735333763354,-798.107832,0.00017209,2]
[346862956,1735333763373,-798.107832,0.00017209,2]
[346862957,1735333763394,-421.444504,0.00017209,2]
[346862958,1735333763418,-3623.71,0.00017235,2]
[346862959,1735333763438,-500.0,0.00017483,2]
[346862960,1735333763460,-3623.71,0.00017509,2]